bitfinex/quotes_BTCUSD_20250917
["timestamp","ask_amount","ask_price","bid_price","bid_amount"]
[1758110791048,1.38194591,116370.0,116360.0,1e-08]
[1758110792062,1.03351801,116370.0,116360.0,1e-08]
[1758110792269,1.38194591,116370.0,116360.0,1e-08]
[1758110795032,1.46721558,116370.0,116360.0,1e-08]
[1758110797169,1.38194591,116370.0,116360.0,1e-08]
[1758110802858,1.03351801,116370.0,116360.0,1e-08]
[1758110803065,1.38194591,116370.0,116360.0,1e-08]
[1758110803902,1.73037381,116370.0,116360.0,1e-08]
[1758110804307,1.73037382,116370.0,116360.0,1e-08]
[1758110804830,1.81564349,116370.0,116360.0,1e-08]
[1758110805765,1.42852018,116370.0,116360.0,1e-08]
[1758110806628,1.16036018,116370.0,116360.0,1e-08]
[1758110806839,1.42848018,116370.0,116360.0,1e-08]
[1758110807250,1.16036018,116370.0,116360.0,1e-08]
[1758110807453,1.42848018,116370.0,116360.0,1e-08]
[1758110808116,1.34321051,116370.0,116360.0,1e-08]
[1758110808657,1.42577051,116370.0,116360.0,1e-08]
[1758110819152,1.15765051,116370.0,116360.0,1e-08]
[1758110819355,1.42573051,116370.0,116360.0,1e-08]
[1758110821070,1.42573074,116370.0,116360.0,1e-08]
[1758110821259,1.51100041,116370.0,116360.0,1e-08]
[1758110822733,1.42573074,116370.0,116360.0,1e-08]
[1758110825278,1.11599825,116370.0,116360.0,1e-08]
[1758110825487,1.42573074,116370.0,116360.0,1e-08]
[1758110828696,1.42573558,116370.0,116360.0,1e-08]
[1758110829702,1.11600309,116370.0,116360.0,1e-08]
[1758110829936,1.42573558,116370.0,116360.0,1e-08]
[1758110830142,1.51100525,116370.0,116360.0,1e-08]
[1758110830970,1.42573558,116370.0,116360.0,1e-08]
[1758110832471,1.42573718,116370.0,116360.0,1e-08]
[1758110833642,1.41969107,116370.0,116360.0,1e-08]
[1758110833866,1.42573657,116370.0,116360.0,1e-08]
[1758110835623,1.15765657,116370.0,116360.0,1e-08]
[1758110835837,1.42569657,116370.0,116360.0,1e-08]
[1758110836922,1.42569648,116370.0,116360.0,1e-08]
[1758110838114,0.84792399,116370.0,116360.0,1e-08]
[1758110838323,1.42631648,116370.0,116360.0,1e-08]
[1758110839526,1.51158615,116370.0,116360.0,1e-08]
[1758110840812,1.51158613,116370.0,116360.0,1e-08]
[1758110841331,1.42631646,116370.0,116360.0,1e-08]
[1758110846487,0.82173397,116370.0,116360.0,1e-08]
[1758110846698,1.0716127,116370.0,116360.0,1e-08]
[1758110846901,0.7210527,116370.0,116360.0,1e-08]
[1758110847109,1.0716127,116370.0,116360.0,1e-08]
[1758110847568,0.8036127,116370.0,116360.0,1e-08]
[1758110847806,0.97594072,116370.0,116360.0,1e-08]
[1758110848077,0.70794072,116370.0,116360.0,1e-08]
[1758110848373,0.97594072,116370.0,116360.0,1e-08]
[1758110848584,0.70793983,116370.0,116360.0,1e-08]
[1758110848794,0.97593983,116370.0,116360.0,1e-08]
[1758110851163,0.97593855,116370.0,116360.0,1e-08]
[1758110853215,0.70793855,116370.0,116360.0,1e-08]
[1758110853358,0.97593855,116370.0,116360.0,1e-08]
[1758110855176,0.70793855,116370.0,116360.0,1e-08]
[1758110855388,0.96989527,116370.0,116360.0,1e-08]
[1758110859661,0.96985527,116370.0,116360.0,1e-08]
[1758110860492,0.70189527,116370.0,116360.0,1e-08]
[1758110860690,0.96985527,116370.0,116360.0,1e-08]
[1758110860894,0.70189527,116370.0,116360.0,1e-08]
[1758110861096,0.96985527,116370.0,116360.0,1e-08]
[1758110863847,0.70189527,116370.0,116360.0,1e-08]
[1758110864083,0.27933527,116370.0,116360.0,1e-08]
[1758110864261,0.54729527,116370.0,116360.0,1e-08]
[1758110866215,0.54729527,116370.0,116360.0,0.00961181]
[1758110866422,0.27933527,116370.0,116360.0,0.00961181]
[1758110866633,0.54529527,116370.0,116360.0,0.00961181]
[1758110867086,0.54729527,116370.0,116360.0,0.00961181]
[1758110867509,0.54529527,116370.0,116360.0,0.00961181]
[1758110868141,0.54529527,116370.0,116360.0,0.01061181]
[1758110869915,0.54529527,116370.0,116360.0,0.00100001]
[1758110871779,0.89358158,116370.0,116360.0,0.00100001]
[1758110873060,0.89563158,116370.0,116360.0,0.00100001]
[1758110873246,0.92280158,116370.0,116360.0,0.00100001]
[1758110873446,0.89863158,116370.0,116360.0,0.00100001]
[1758110873650,0.92280158,116370.0,116360.0,0.00100001]
[1758110873875,0.89563158,116370.0,116360.0,0.00100001]
[1758110874299,0.92280158,116370.0,116360.0,0.00100001]
[1758110874952,0.89563158,116370.0,116360.0,0.00100001]
[1758110877155,0.89358158,116370.0,116360.0,0.00100001]
[1758110877434,1.27049789,116370.0,116360.0,0.00100001]
[1758110877903,0.92221158,116370.0,116360.0,0.00100001]
[1758110878350,1.27049789,116370.0,116360.0,0.00100001]
[1758110878564,0.92221158,116370.0,116360.0,0.00100001]
[1758110879204,1.27049789,116370.0,116360.0,0.00100001]
[1758110879632,0.92221158,116370.0,116360.0,0.00100001]
[1758110879848,1.27049789,116370.0,116360.0,0.00100001]
[1758110880065,1.27653557,116370.0,116360.0,0.00100001]
[1758110883293,1.30668688,116370.0,116360.0,0.00100001]
[1758110884262,1.37016268,116370.0,116360.0,0.00100001]
[1758110888664,1.37008268,116370.0,116360.0,0.00100001]
[1758110890538,1.30660688,116370.0,116360.0,0.00100001]
[1758110891062,1.30662688,116370.0,116360.0,0.00100001]
[1758110893503,1.64662688,116370.0,116360.0,0.00100001]
[1758110893984,1.64058979,116370.0,116360.0,0.00100001]
[1758110894436,1.63547979,116370.0,116360.0,0.00100001]
[1758110894656,1.64058979,116370.0,116360.0,0.00100001]
[1758110895564,1.64662179,116370.0,116360.0,0.00100001]
[1758110895774,1.64058979,116370.0,116360.0,0.00100001]
[1758110896492,0.94401717,116370.0,116360.0,0.00100001]
[1758110896705,1.64662192,116370.0,116360.0,0.00100001]
[1758110897741,1.64058979,116370.0,116360.0,0.00100001]
[1758110898160,1.64662228,116370.0,116360.0,0.00100001]
[1758110898329,1.64058979,116370.0,116360.0,0.00100001]
[1758110898537,1.64662208,116370.0,116360.0,0.00100001]
[1758110901904,1.64662287,116370.0,116360.0,0.00100001]
[1758110907471,1.64662287,116370.0,116360.0,1e-08]
[1758110907689,1.29833656,116370.0,116360.0,1e-08]
[1758110908180,1.30233656,116370.0,116360.0,0.00100001]
[1758110908432,1.36699894,116370.0,116360.0,0.00100001]
[1758110909250,1.38687687,116370.0,116360.0,0.00100001]
[1758110916845,1.46943687,116370.0,116360.0,0.00100001]
[1758110917061,1.48553027,116370.0,116360.0,0.00100001]
[1758110917911,1.46943687,116370.0,116360.0,0.00100001]
[1758110918121,1.48553038,116370.0,116360.0,0.001]
[1758110918573,1.13724407,116370.0,116360.0,0.001]
[1758110925901,1.48553038,116370.0,116360.0,0.001]
[1758110926114,1.13724407,116370.0,116360.0,0.001]
[1758110926371,0.86936407,116370.0,116360.0,0.001]
[1758110926625,1.13720407,116370.0,116360.0,0.34934744]
[1758110926877,0.86936407,116370.0,116360.0,0.34934744]
[1758110927085,1.13720407,116370.0,116360.0,0.34934744]
[1758110927765,0.79720407,116370.0,116360.0,0.34934744]
[1758110927987,0.79720407,116370.0,116360.0,0.3106366]
[1758110928409,0.79720407,116370.0,116360.0,0.001]
[1758110929391,0.79720345,116370.0,116360.0,0.001]
[1758110932668,0.79720345,116370.0,116360.0,0.30963661]
[1758110933075,0.79720537,116370.0,116360.0,0.30963661]
[1758110933322,0.79720537,116370.0,116360.0,1e-08]
[1758110933780,0.79720537,116370.0,116360.0,0.30963661]
[1758110934074,0.79720537,116370.0,116360.0,1e-08]
[1758110934757,0.20203227,116360.0,116350.0,0.0001]
[1758110935006,0.29333694,116360.0,116350.0,0.31020638]
[1758110935233,0.29553694,116360.0,116350.0,0.31020638]
[1758110935460,0.32237694,116360.0,116350.0,0.00056978]
[1758110935682,0.34820297,116360.0,116350.0,0.31020638]
[1758110936127,0.61604297,116360.0,116350.0,0.31020638]
[1758110936346,0.58589107,116360.0,116350.0,0.31010638]
[1758110936826,0.31805107,116360.0,116350.0,0.31010638]
[1758110937051,0.58589107,116360.0,116350.0,0.00046978]
[1758110937288,0.58589107,116360.0,116350.0,0.00056978]
[1758110937509,0.58589107,116360.0,116350.0,0.31020638]
[1758110938177,0.58589107,116360.0,116350.0,0.00056978]
[1758110939867,0.32105107,116360.0,116350.0,0.00156978]
[1758110940078,0.58889107,116360.0,116350.0,0.00156978]
[1758110940741,0.32105107,116360.0,116350.0,0.00156978]
[1758110940963,0.58889107,116360.0,116350.0,0.00156978]
[1758110941913,0.92867957,116360.0,116350.0,0.00156978]
[1758110942150,0.94477222,116360.0,116350.0,0.00156978]
[1758110942367,0.92867957,116360.0,116350.0,0.00156978]
[1758110942608,0.94477036,116360.0,116350.0,0.00156978]
[1758110942848,0.36729376,116360.0,116350.0,0.00146978]
[1758110943065,0.68843268,116360.0,116350.0,0.00146978]
[1758110946377,0.67234189,116360.0,116350.0,0.00146978]
[1758110946593,0.68842657,116360.0,116350.0,0.00146978]
[1758110947000,0.42058657,116360.0,116350.0,0.00146978]
[1758110947206,0.68842657,116360.0,116350.0,0.00146978]
[1758110947423,0.98197849,116360.0,116350.0,0.00146978]
[1758110947636,0.67234189,116360.0,116350.0,0.00146978]
[1758110950538,1.02842499,116360.0,116350.0,0.00146978]
[1758110958427,1.01234189,116360.0,116350.0,0.00146978]
[1758110958632,1.02842397,116360.0,116350.0,0.00146978]
[1758110959253,1.11098397,116360.0,116350.0,0.00146978]
[1758110960119,1.11098012,116360.0,116350.0,0.00146978]
[1758110961607,1.11098375,116360.0,116350.0,0.00146978]
[1758110963011,1.11098538,116360.0,116350.0,0.00146978]
[1758110964677,1.12024373,116360.0,116350.0,0.00146978]
[1758110966095,0.85240373,116360.0,116350.0,0.00146978]
[1758110966344,1.12024373,116360.0,116350.0,0.00146978]
[1758110982842,1.12024577,116360.0,116350.0,0.00146978]
[1758110985377,0.85240577,116360.0,116350.0,0.00146978]
[1758110985778,1.12072577,116360.0,116350.0,0.00146978]
[1758110986519,1.10464006,116360.0,116350.0,0.00146978]
[1758110986725,1.1207303,116360.0,116350.0,0.00146978]
[1758110991836,0.8524103,116360.0,116350.0,0.00146978]
[1758110992053,1.1220103,116360.0,116350.0,0.00146978]
[1758110993159,1.47051461,116360.0,116350.0,0.00146978]
[1758110995230,1.47051322,116360.0,116350.0,0.00146978]
[1758110996830,1.12200891,116360.0,116350.0,0.00146978]
[1758110997496,1.21256891,116360.0,116350.0,0.00146978]
[1758110997798,1.12200891,116360.0,116350.0,0.00146978]
[1758111001232,1.12200891,116360.0,116350.0,0.34997409]
[1758111002085,1.12200891,116360.0,116350.0,0.00146978]
[1758111003146,1.12200891,116360.0,116350.0,0.34997409]
[1758111004811,1.12201023,116360.0,116350.0,0.34997409]
[1758111005406,1.12189023,116360.0,116350.0,0.34997409]
[1758111007015,1.11263188,116360.0,116350.0,0.34997409]
[1758111007214,1.11259188,116360.0,116350.0,0.34997409]
[1758111007657,0.84447188,116360.0,116350.0,0.34997409]
[1758111008066,1.11259188,116360.0,116350.0,0.34997409]
[1758111011239,1.12172897,116360.0,116350.0,0.34997409]
[1758111013627,1.11259188,116360.0,116350.0,0.34997409]
[1758111016216,1.11259188,116360.0,116350.0,0.00146978]
[1758111016427,1.11259188,116360.0,116350.0,0.34997409]
[1758111017764,1.46109619,116360.0,116350.0,0.00146978]
[1758111018646,1.45506144,116360.0,116350.0,0.00146978]
[1758111018864,1.46109882,116360.0,116350.0,0.00146978]
[1758111021878,1.11259451,116360.0,116350.0,0.00146978]
[1758111022115,1.46109882,116360.0,116350.0,0.00146978]
[1758111022301,1.11259451,116360.0,116350.0,0.00146978]
[1758111022577,1.46109882,116360.0,116350.0,0.00146978]
[1758111028419,1.46121882,116360.0,116350.0,0.00146978]
[1758111029626,1.19297882,116360.0,116350.0,0.00146978]
[1758111029827,1.46121882,116360.0,116350.0,0.00146978]
[1758111030486,0.84447451,116360.0,116350.0,0.00146978]
[1758111030703,0.73076505,116360.0,116350.0,0.34997409]
[1758111030925,0.37467481,116360.0,116350.0,0.34997409]
[1758111031120,0.64299481,116360.0,116350.0,0.34997409]
[1758111031330,0.63695607,116360.0,116350.0,0.34997409]
[1758111031810,0.63699607,116360.0,116350.0,0.34997409]
[1758111032437,0.63699607,116360.0,116350.0,0.00146978]
[1758111034177,0.61107847,116360.0,116350.0,0.00146978]
[1758111034410,0.26019847,116360.0,116350.0,0.00146978]
[1758111034644,0.0031,116360.0,116350.0,0.17336492]
[1758111034875,0.0031,116360.0,116350.0,0.19928288]
[1758111035302,0.0001,116360.0,116350.0,0.19828288]
[1758111035522,0.0021,116360.0,116350.0,0.19828288]
[1758111035814,0.0021,116360.0,116350.0,0.53828288]
[1758111036063,0.002,116360.0,116350.0,0.53828288]
[1758111036309,0.2685,116370.0,116350.0,0.53828288]
[1758111036519,0.0001,116370.0,116360.0,0.17188037]
[1758111036973,0.0001,116370.0,116360.0,0.17198037]
[1758111037216,0.1719656,116370.0,116360.0,0.17198037]
[1758111037631,0.0001,116370.0,116360.0,0.17198037]
[1758111038614,0.0011,116370.0,116360.0,0.17198037]
[1758111039220,0.0011,116370.0,116360.0,0.18123085]
[1758111041061,0.0011,116370.0,116360.0,0.52123085]
[1758111041275,0.001,116370.0,116360.0,0.87566052]
[1758111041926,0.001,116370.0,116360.0,0.901474]
[1758111042698,0.001,116370.0,116360.0,0.901394]
[1758111043131,0.001,116370.0,116360.0,0.632314]
[1758111043335,0.001,116370.0,116360.0,0.901394]
[1758111044211,0.17193609,116390.0,116380.0,0.17185083]
[1758111044761,0.17193609,116390.0,116380.0,0.17195083]
[1758111045792,0.17293609,116390.0,116380.0,0.17195083]
[1758111050505,0.17293609,116390.0,116380.0,0.0001]
[1758111051032,0.17293609,116390.0,116380.0,0.17195083]
[1758111053236,0.17893497,116390.0,116380.0,0.17195083]
[1758111055560,0.17893497,116390.0,116380.0,0.0001]
[1758111056051,0.17893497,116390.0,116380.0,0.17195083]
[1758111056260,0.17893497,116390.0,116380.0,0.0001]
[1758111056465,0.17893497,116390.0,116380.0,0.17195083]
[1758111057300,0.17893497,116390.0,116380.0,0.0001]
[1758111058683,0.17893497,116390.0,116380.0,0.17195083]
[1758111060293,0.17893497,116390.0,116380.0,0.44071083]
[1758111060493,0.17893497,116390.0,116380.0,0.44067083]
[1758111060696,0.00709888,116390.0,116380.0,0.44067083]
[1758111060907,0.17893494,116390.0,116380.0,0.44067083]
[1758111061924,0.17893494,116390.0,116380.0,0.17195083]
[1758111062137,0.17893494,116390.0,116380.0,0.44067083]
[1758111062700,0.17893494,116390.0,116380.0,0.17195083]
[1758111062905,0.17893494,116390.0,116380.0,0.44063083]
[1758111064315,0.17893494,116390.0,116380.0,0.17195083]
[1758111064533,0.17893494,116390.0,116380.0,0.44063083]
[1758111065886,0.17893494,116390.0,116380.0,0.17195083]
[1758111066297,0.19502643,116390.0,116380.0,0.44055083]
[1758111066501,0.00699888,116390.0,116380.0,0.78055083]
[1758111066931,0.00699888,116390.0,116380.0,0.89163076]
[1758111067168,0.00699888,116390.0,116380.0,0.89175076]
[1758111068923,0.001,116390.0,116380.0,0.73570266]
[1758111069383,0.001,116390.0,116380.0,0.87645747]
[1758111069609,0.0001,116410.0,116400.0,0.1718213]
[1758111069831,0.00613336,116410.0,116400.0,0.4405813]
[1758111070084,0.00613336,116410.0,116400.0,0.4406413]
[1758111070295,0.00613336,116410.0,116400.0,0.46644734]
[1758111070913,0.00618032,116410.0,116400.0,0.46644734]
[1758111072332,0.00618032,116410.0,116400.0,0.46844734]
[1758111073970,0.00617672,116410.0,116400.0,0.46844734]
[1758111074518,0.00617672,116410.0,116400.0,0.46840734]
[1758111077003,0.17798326,116410.0,116400.0,0.19972734]
[1758111077229,0.17798326,116410.0,116400.0,0.46832734]
[1758111077434,0.00617672,116410.0,116400.0,0.46832734]
[1758111082813,0.00617672,116410.0,116400.0,0.46824734]
[1758111086216,0.00014696,116410.0,116400.0,0.46824734]
[1758111087376,0.00014696,116410.0,116400.0,0.46820734]
[1758111088483,0.00014696,116410.0,116400.0,0.19972734]
[1758111088674,0.1719535,116410.0,116400.0,0.46816734]
[1758111089752,0.00014696,116410.0,116400.0,0.46816734]
[1758111090758,0.1719535,116410.0,116400.0,0.46860734]
[1758111091760,0.1719535,116410.0,116400.0,0.77796569]
[1758111093403,0.00014696,116410.0,116400.0,0.77796569]
[1758111093839,0.00014696,116410.0,116400.0,0.83972298]
[1758111095377,0.00014696,116410.0,116400.0,0.77796569]
[1758111096270,0.00014696,116410.0,116400.0,0.46860734]
[1758111096524,0.00014696,116410.0,116400.0,0.77796569]
[1758111097428,0.00014696,116410.0,116400.0,0.85535334]
[1758111102567,0.00014696,116410.0,116400.0,0.58647334]
[1758111102916,0.00014696,116410.0,116400.0,0.85523334]
[1758111103554,0.00014696,116410.0,116400.0,0.85519334]
[1758111105715,0.00014696,116410.0,116400.0,0.85515334]
[1758111109750,0.00014696,116410.0,116400.0,1.24180301]
[1758111110771,0.00014696,116410.0,116400.0,0.27711499]
[1758111110976,0.00014696,116410.0,116400.0,1.24168301]
[1758111119220,0.00014696,116410.0,116400.0,1.16429536]
[1758111119428,0.00014696,116410.0,116400.0,1.24160534]
[1758111120911,0.0001,116420.0,116410.0,0.17180654]
[1758111121159,0.0001,116420.0,116410.0,0.93711085]
[1758111121881,0.17187791,116430.0,116420.0,0.17179178]
[1758111122082,0.17192491,116430.0,116420.0,0.84997214]
[1758111122570,0.000147,116430.0,116420.0,0.84997214]
[1758111122813,0.000147,116430.0,116420.0,0.87577549]
[1758111123054,0.001147,116430.0,116420.0,0.81395914]
[1758111123483,0.001147,116430.0,116420.0,0.82308357]
[1758111123706,0.001147,116430.0,116420.0,0.82318357]
[1758111125738,0.001147,116430.0,116420.0,0.20681956]
[1758111125958,0.001147,116430.0,116420.0,0.82310357]
[1758111126384,0.001147,116430.0,116420.0,0.47509956]
[1758111126593,0.001147,116430.0,116420.0,0.82310357]
[1758111127014,0.001147,116430.0,116420.0,1.16310357]
[1758111127235,0.001047,116430.0,116420.0,1.70382945]
[1758111127666,0.001047,116430.0,116420.0,1.7340989]
[1758111128086,0.001047,116430.0,116420.0,1.7342589]
[1758111128529,4.7e-05,116430.0,116420.0,1.80012471]
[1758111128684,4.7e-05,116430.0,116420.0,1.85012471]
[1758111128915,4.7e-05,116430.0,116420.0,1.85212471]
[1758111129321,4.7e-05,116430.0,116420.0,1.74455496]
[1758111130141,4.7e-05,116430.0,116420.0,1.82156307]
[1758111131808,0.17189343,116460.0,116450.0,0.17174753]
[1758111132012,0.17194043,116460.0,116450.0,0.78811154]
[1758111132382,0.17194043,116460.0,116450.0,0.81390893]
[1758111132983,0.17394043,116460.0,116450.0,0.81396893]
[1758111134083,0.17394043,116460.0,116450.0,0.6422214]
[1758111134337,0.17394043,116460.0,116450.0,0.3739014]
[1758111134544,0.17394043,116460.0,116450.0,0.82267094]
[1758111134786,0.17394043,116460.0,116450.0,0.6421814]
[1758111135642,0.17394043,116460.0,116450.0,0.81392893]
[1758111136873,0.17394043,116460.0,116450.0,0.6421814]
[1758111138263,0.17394043,116460.0,116450.0,0.81392893]
[1758111139387,0.17394043,116460.0,116450.0,0.46592492]
[1758111139603,0.17394043,116460.0,116450.0,0.81392893]
[1758111140841,0.17394043,116460.0,116450.0,0.6421414]
[1758111141044,0.17394043,116460.0,116450.0,0.81388893]
[1758111141504,0.17394043,116460.0,116450.0,0.6421414]
[1758111142339,0.17394043,116460.0,116450.0,0.81388893]
[1758111142593,0.17394043,116460.0,116450.0,0.02589739]
[1758111142801,0.17394043,116460.0,116450.0,0.6421414]
[1758111143208,0.17394043,116460.0,116450.0,0.46588492]
[1758111143450,0.17394043,116460.0,116450.0,0.81388893]
[1758111144543,0.17394043,116460.0,116450.0,0.46588492]
[1758111144769,0.17394043,116460.0,116450.0,0.81388893]
[1758111146809,0.52698444,116460.0,116450.0,0.02589739]
[1758111147030,0.20154043,116460.0,116450.0,0.29401739]
[1758111147241,0.54954444,116460.0,116450.0,0.02589739]
[1758111147702,0.20154043,116460.0,116450.0,0.02589739]
[1758111147889,0.54954444,116460.0,116450.0,0.02589739]
[1758111148139,0.20154043,116460.0,116450.0,0.02589739]
[1758111148358,0.52389444,116460.0,116450.0,0.02589739]
[1758111148793,0.52194444,116460.0,116450.0,0.02589739]
[1758111149671,0.52389444,116460.0,116450.0,0.02589739]
[1758111151047,0.54954444,116460.0,116450.0,0.02589739]
[1758111151393,0.89754845,116460.0,116450.0,0.02589739]
[1758111152031,0.89754845,116460.0,116450.0,0.0001]
[1758111152930,0.17174753,116450.0,116440.0,0.26814]
[1758111153142,0.52170154,116450.0,116440.0,0.26814]
[1758111153368,0.54745154,116450.0,116440.0,0.26814]
[1758111153586,0.81549154,116450.0,116440.0,0.0001]
[1758111154253,0.81649154,116450.0,116440.0,0.0001]
[1758111157330,0.81657154,116450.0,116440.0,0.0001]
[1758111157605,0.17176228,116440.0,116430.0,0.40168402]
[1758111157859,0.51976629,116440.0,116430.0,0.40168402]
[1758111158083,0.52181629,116440.0,116430.0,0.40168402]
[1758111158532,0.54976629,116440.0,116430.0,0.0001]
[1758111159189,0.81784629,116440.0,116430.0,0.0001]
[1758111159332,0.81784629,116440.0,116430.0,0.0011]
[1758111160930,0.79311629,116440.0,116430.0,0.0011]
[1758111161107,0.81784629,116440.0,116430.0,0.0011]
[1758111161979,0.54976629,116440.0,116430.0,0.0011]
[1758111162207,0.17186228,116440.0,116430.0,0.19005473]
[1758111162436,0.43990228,116440.0,116430.0,0.17287703]
[1758111162647,0.0001,116440.0,116430.0,0.58246506]
[1758111165433,0.0001,116440.0,116430.0,0.17287703]
[1758111165639,0.0001,116440.0,116430.0,0.98430662]
[1758111165860,0.0001,116450.0,116440.0,0.17176228]
[1758111166077,0.0001,116450.0,116440.0,1.18964917]
[1758111167776,0.0001,116450.0,116440.0,1.18974917]
[1758111168594,0.0011,116450.0,116440.0,0.84174516]
[1758111168793,0.0011,116450.0,116440.0,1.18974917]
[1758111171009,0.0011,116450.0,116440.0,0.84174516]
[1758111171229,0.0011,116450.0,116440.0,1.18974917]
[1758111171855,0.0011,116450.0,116440.0,1.15089051]
[1758111172294,0.0011,116450.0,116440.0,1.08920763]
[1758111175658,0.17284753,116450.0,116440.0,0.51186228]
[1758111176070,0.17284753,116450.0,116440.0,0.78002228]
[1758111176730,0.17284753,116450.0,116440.0,0.84170399]
[1758111177364,0.17284753,116450.0,116440.0,0.84178399]
[1758111177763,0.17284753,116450.0,116440.0,0.89178399]
[1758111179206,0.17793753,116450.0,116440.0,0.62354399]
[1758111179427,0.17793753,116450.0,116440.0,0.93268934]
[1758111179636,0.17284753,116450.0,116440.0,1.20092934]
[1758111180041,0.17481753,116450.0,116440.0,0.62354399]
[1758111180253,0.20254753,116450.0,116440.0,0.72002171]
[1758111180702,0.20254753,116450.0,116440.0,0.45178171]
[1758111180911,0.47078753,116450.0,116440.0,0.45178171]
[1758111182190,0.47068753,116450.0,116440.0,0.45178171]
[1758111182739,0.44607753,116450.0,116440.0,0.45178171]
[1758111182957,0.47068753,116450.0,116440.0,0.45178171]
[1758111183477,0.47068753,116450.0,116440.0,0.11178171]
[1758111183681,0.47068753,116450.0,116440.0,0.0501]
[1758111184144,0.47078753,116450.0,116440.0,0.0501]
[1758111185007,0.77993288,116450.0,116440.0,0.0501]
[1758111185920,0.78005288,116450.0,116440.0,0.0501]
[1758111186524,0.20254753,116450.0,116440.0,0.0501]
[1758111186887,0.47090753,116450.0,116440.0,0.0501]
[1758111188865,0.20254753,116450.0,116440.0,0.0501]
[1758111189105,0.47086753,116450.0,116440.0,0.22186228]
[1758111189319,0.47086753,116450.0,116440.0,0.0501]
[1758111189566,0.47086753,116450.0,116440.0,0.22186228]
[1758111189776,0.47090753,116450.0,116440.0,0.22186228]
[1758111189979,0.44629753,116450.0,116440.0,0.22186228]
[1758111190406,0.44124753,116450.0,116440.0,0.53100763]
[1758111190623,0.44124753,116450.0,116440.0,0.59268934]
[1758111192946,0.26958,116450.0,116440.0,0.59268934]
[1758111194247,0.0011,116450.0,116440.0,0.86116934]
[1758111197773,0.0011,116450.0,116440.0,0.79948763]
[1758111199089,0.0011,116450.0,116440.0,0.87100763]
[1758111199375,0.001,116450.0,116440.0,1.21657574]
[1758111199798,0.17188091,116460.0,116450.0,0.17174753]
[1758111200019,0.17188091,116460.0,116450.0,0.54263032]
[1758111200237,0.17188091,116460.0,116450.0,0.23348497]
[1758111200458,0.000147,116460.0,116450.0,1.15125032]
[1758111200696,4.7e-05,116460.0,116450.0,0.82099288]
[1758111202504,4.7e-05,116460.0,116450.0,0.82199288]
[1758111204561,4.7e-05,116460.0,116450.0,0.87199288]
[1758111207543,4.7e-05,116460.0,116450.0,1.06442256]
[1758111207762,4.7e-05,116460.0,116450.0,1.35857625]
[1758111210190,4.7e-05,116460.0,116450.0,1.35849625]
[1758111210391,4.7e-05,116460.0,116450.0,1.14021625]
[1758111210631,4.7e-05,116460.0,116450.0,1.40849625]
[1758111210907,4.7e-05,116460.0,116450.0,1.14021625]
[1758111211328,4.7e-05,116460.0,116450.0,1.40849625]
[1758111212652,4.7e-05,116460.0,116450.0,1.14021625]
[1758111212850,4.7e-05,116460.0,116450.0,1.40845625]
[1758111214739,4.7e-05,116460.0,116450.0,1.14021625]
[1758111215249,4.7e-05,116460.0,116450.0,1.40841625]
[1758111217687,0.20285587,116490.0,116470.0,0.17171571]
[1758111217903,0.17385467,116480.0,116470.0,0.74898106]
[1758111218572,0.18243983,116480.0,116470.0,0.74898106]
[1758111218777,0.18565983,116480.0,116470.0,0.17171571]
[1758111219374,0.18765983,116480.0,116470.0,0.17171571]
[1758111219831,0.21189983,116480.0,116470.0,0.17171571]
[1758111220044,0.21189983,116480.0,116460.0,0.53052119]
[1758111220964,0.21189983,116480.0,116460.0,0.53062119]
[1758111222005,0.20989983,116480.0,116460.0,0.53062119]
[1758111222253,0.20989983,116480.0,116470.0,0.17171803]
[1758111222483,0.21189983,116480.0,116470.0,0.43975803]
[1758111222861,0.21189983,116480.0,116470.0,0.43985803]
[1758111223089,0.20989983,116480.0,116470.0,0.43985803]
[1758111223508,0.21189983,116480.0,116470.0,0.43985803]
[1758111223713,0.18453983,116480.0,116470.0,0.43985803]
[1758111224576,0.18453983,116480.0,116470.0,0.77285338]
[1758111225303,0.18238983,116480.0,116470.0,0.7817663]
[1758111227759,0.18238983,116480.0,116470.0,0.84339939]
[1758111227967,0.0021,116480.0,116470.0,0.84339939]
[1758111228446,0.0021,116480.0,116470.0,0.7817663]
[1758111228664,0.17380329,116480.0,116470.0,0.5137263]
[1758111228877,0.17595329,116480.0,116470.0,0.51037563]
[1758111229073,0.20131329,116480.0,116470.0,0.11182468]
[1758111229294,0.20131329,116480.0,116470.0,0.37974468]
[1758111229514,0.20131329,116480.0,116470.0,0.55146271]
[1758111229955,0.20131329,116480.0,116470.0,0.37974468]
[1758111230179,0.20131329,116480.0,116470.0,0.55246271]
[1758111231386,0.20131329,116480.0,116470.0,0.38074468]
[1758111231943,0.20131329,116480.0,116470.0,0.55246271]
[1758111232544,0.20131329,116480.0,116470.0,0.38074468]
[1758111233508,0.20131329,116480.0,116470.0,0.55246271]
[1758111233949,0.20131329,116480.0,116470.0,0.90014933]
[1758111234556,0.20131329,116480.0,116470.0,0.63222933]
[1758111234690,0.20131329,116480.0,116470.0,0.90014933]
[1758111235006,0.20131329,116480.0,116470.0,0.63222933]
[1758111235445,0.20131329,116480.0,116470.0,0.90014933]
[1758111235690,0.20131329,116480.0,116470.0,0.63222933]
[1758111235848,0.20131329,116480.0,116470.0,0.90014933]
[1758111237322,0.19131329,116480.0,116470.0,0.90014933]
[1758111238270,0.19141329,116480.0,116470.0,0.90014933]
[1758111238666,0.16717329,116480.0,116470.0,0.90014933]
[1758111239283,0.19110329,116480.0,116470.0,0.11282468]
[1758111239435,0.53878991,116480.0,116470.0,0.11282468]
[1758111240474,0.19110329,116480.0,116470.0,0.11282468]
[1758111240679,0.45902329,116480.0,116470.0,0.11282468]
[1758111240876,0.80670991,116480.0,116470.0,0.11282468]
[1758111241300,0.89197958,116480.0,116470.0,0.0511]
[1758111241940,0.62405958,116480.0,116470.0,0.0511]
[1758111242147,0.89197958,116480.0,116470.0,0.0511]
[1758111242347,0.62405958,116480.0,116470.0,0.0511]
[1758111242571,0.89197958,116480.0,116470.0,0.0511]
[1758111242972,0.62405958,116480.0,116470.0,0.0511]
[1758111243182,0.89197958,116480.0,116470.0,0.0511]
[1758111243624,0.62405958,116480.0,116470.0,0.0511]
[1758111243795,0.89197958,116480.0,116470.0,0.0511]
[1758111248683,0.90083327,116480.0,116470.0,0.0511]
[1758111258274,0.9266311,116480.0,116470.0,0.05]
[1758111258698,0.9296311,116480.0,116470.0,0.051]
[1758111258902,0.93566339,116480.0,116470.0,0.051]
[1758111259313,0.9296311,116480.0,116470.0,0.051]
[1758111259521,1.28334895,116480.0,116470.0,0.051]
[1758111259858,0.93566233,116480.0,116470.0,0.051]
[1758111260054,1.28334895,116480.0,116470.0,0.051]
[1758111260289,0.93566233,116480.0,116470.0,0.051]
[1758111260501,1.28334895,116480.0,116470.0,0.051]
[1758111261328,1.01542895,116480.0,116470.0,0.051]
[1758111261541,1.28334895,116480.0,116470.0,0.051]